lending/lending_fUSD_20240131
["ID","MTS","AMOUNT","RATE_DAILY","PERIOD"]
[313082488,1706730640724,-1689.95371135,0.00023436,2]
[313082491,1706730640736,-387.72733961,0.00023436,2]
[313082555,1706730641364,-356.19588052,0.00023436,2]
[313082558,1706730641376,-5239.42089606,0.00023436,2]
[313082560,1706730641385,-249.46647659,0.00023553,2]
[313082562,1706730641397,-203.22221247,0.00023554,2]
[313082564,1706730641406,-221.04924005,0.00023555,2]
[313082566,1706730641417,-155.0,0.00023555,2]
[313082568,1706730641426,-206.37635683,0.00023556,2]
[313082570,1706730641435,-160.91046424,0.00023556,2]
[313082571,1706730641444,-206.37635681,0.00023557,2]
[313082573,1706730641453,-206.37635681,0.00023557,2]
[313082575,1706730641463,-525.17910571,0.00023654,2]
[313082577,1706730641473,-13046.63577094,0.00023654,2]
[313082579,1706730641482,-5228.78655032,0.00023654,2]
[313082581,1706730641491,-10529.35130976,0.00023654,2]
[313082584,1706730641500,-3198.37181468,0.00023656,2]
[313082586,1706730641510,-33452.11734194,0.00023657,2]
[313082588,1706730641519,-362.14263408,0.00023781,2]
[313082590,1706730641529,-381.62257452,0.00023781,2]
[313082592,1706730641538,-6598.69912113,0.00023782,2]
[313082594,1706730641547,-150.0,0.00023783,2]
[313082596,1706730641556,-230.26204204,0.00023909,2]
[313082598,1706730641565,-250.0,0.00024131,2]
[313082600,1706730641574,-811.12,0.00024325,2]
[313082602,1706730641583,-170.23,0.00024515,2]
[313082603,1706730641591,-1000.0,0.00024654,2]
[313082605,1706730641600,-1795.11,0.00024779,2]
[313082607,1706730641611,-8826.875,0.00024779,2]
[313082642,1706730641804,-279.50681082,0.00025006,2]
[313082645,1706730641813,-1008.83087784,0.00025006,2]
[313082648,1706730641823,-155.0,0.00025007,2]
[313082651,1706730641832,-204.7712179,0.00025007,2]
[313082654,1706730641842,-630.041593,0.00025007,2]
[313082656,1706730641851,-83885.9819,0.00025008,2]
[313082659,1706730641865,-500.0,0.00025106,2]
[313082661,1706730641875,-245.28549074,0.00025106,2]
[313082664,1706730641884,-178.0784644,0.00025106,2]
[313082667,1706730641893,-290.30960641,0.00025106,2]
[313082668,1706730641903,-155.90374873,0.00025106,2]
[313082669,1706730641912,-228.79454347,0.00025106,2]
[313082670,1706730641921,-155.0,0.00025106,2]
[313082671,1706730641930,-8499.14832441,0.00025108,2]
[313082672,1706730641943,-42277.48140933,0.00025108,2]
[313082673,1706730641954,-1627.41531483,0.00025108,2]
[313082674,1706730641966,-2795.14041374,0.00025108,2]
[313082675,1706730641978,-6717.49289444,0.00025108,2]
[313082676,1706730642001,-8065.22788064,0.00025108,2]
[313082678,1706730642011,-250.0,0.00025175,2]
[313082680,1706730642021,-200.0,0.0002525,2]
[313082682,1706730642031,-765.38,0.00025271,2]
[313082684,1706730642045,-232.43131942,0.00025334,2]
[313082685,1706730642055,-5404.86,0.00025334,2]
[313082686,1706730642066,-2184.51565051,0.000255,2]
[313082687,1706730642077,-5830.0,0.000256,2]
[313082688,1706730642087,-2525.0,0.000256,2]
[313082689,1706730642098,-612.08701771,0.00026226,2]
[313082690,1706730642127,-543.598,0.00026226,2]
[313082697,1706730643019,-920.88836545,0.00023435,2]
[313082699,1706730643032,-524.28739125,0.00023435,2]
[313082702,1706730643043,-683.54778002,0.00023435,2]
[313082704,1706730643054,-184.39228461,0.00023435,2]
[313082706,1706730643063,-1394.10771339,0.00026226,2]
[313082711,1706730643128,-11867.89184471,0.00026226,2]
[313082712,1706730643245,-9482.31542419,0.00026226,2]
[313082713,1706730643255,-159.05,0.00026439,2]
[313082714,1706730643264,-159.05,0.00026512,2]
[313082715,1706730643273,-159.05,0.00026585,2]
[313082716,1706730643283,-1184.89,0.00026589,2]
[313082717,1706730643292,-159.05,0.00026657,2]
[313082718,1706730643301,-159.05,0.0002673,2]
[313082720,1706730643310,-160.91046422,0.00026786,2]
[313082722,1706730643319,-159.05,0.00026802,2]
[313082724,1706730643328,-159.05,0.00026875,2]
[313082726,1706730643337,-734.51,0.00026945,2]
[313082728,1706730643346,-159.05,0.00026947,2]
[313082730,1706730643358,-499.99,0.00026974,2]
[313082732,1706730643370,-159.05,0.0002702,2]
[313082734,1706730643379,-159.05,0.00027092,2]
[313082736,1706730643388,-159.05,0.00027165,2]
[313082738,1706730643399,-159.05,0.00027237,2]
[313082740,1706730643408,-1857.92137233,0.00027259,2]
[313082742,1706730643418,-159.05,0.0002731,2]
[313082744,1706730643428,-159.05,0.00027382,2]
[313082746,1706730643437,-155.91,0.00027397,2]
[313082748,1706730643446,-159.05,0.00027455,2]
[313082750,1706730643455,-159.05,0.00027527,2]
[313082752,1706730643465,-501.52,0.00027561,2]
[313082754,1706730643475,-159.05,0.000276,2]
[313082756,1706730643486,-159.05,0.00027672,2]
[313082758,1706730643495,-159.05,0.00027745,2]
[313082760,1706730643504,-159.05,0.00027817,2]
[313082762,1706730643513,-216.72,0.00028071,2]
[313082764,1706730643522,-155.91,0.00028219,2]
[313082766,1706730643531,-200.0,0.00028406,2]
[313082768,1706730643541,-19456.18,0.00028862,2]
[313082770,1706730643550,-2971.1453248,0.00028999,2]
[313082772,1706730643559,-150.0,0.00029,2]
[313082774,1706730643568,-155.91,0.00029041,2]
[313082776,1706730643578,-170.92,0.00029136,2]
[313082778,1706730643587,-1858.0,0.00029173,2]
[313082779,1706730643597,-896.622,0.00029173,2]
[313082781,1706730643608,-2865.0,0.00029173,2]
[313082784,1706730643617,-837.0,0.00029173,2]
[313082785,1706730643626,-1004.091,0.00029173,2]
[313082787,1706730643635,-1938.0,0.00029173,2]
[313082789,1706730643644,-859.999,0.00029173,2]
[313082790,1706730643653,-320.0,0.00029173,2]
[313082792,1706730643662,-4223.477,0.00029173,2]
[313082794,1706730643671,-3665.809,0.00029173,2]
[313082795,1706730643680,-681.823,0.00029173,2]
[313082796,1706730643689,-2323.705,0.00029173,2]
[313082797,1706730643698,-152.77813275,0.00029173,2]
[313082798,1706730643711,-1549.98386725,0.00029173,2]
[313082799,1706730643720,-325.89,0.00029173,2]
[313082800,1706730643729,-1051.425,0.00029173,2]
[313082801,1706730643738,-171.35113926,0.00029208,2]
[313082818,1706730646043,-277.00956143,0.00029208,2]
[313082819,1706730646155,-286.14929931,0.00029208,2]
[313082820,1706730646165,-311.35,0.00029215,2]
[313082821,1706730646174,-155.91,0.00029863,2]
[313082822,1706730646184,-375.48800695,0.0003,2]
[313082823,1706730646193,-693.97535529,0.0003,2]
[313082824,1706730646202,-1314.50450229,0.0003,2]
[313082825,1706730646217,-943.6300854,0.0003,2]
[313082826,1706730646278,-858.92577954,0.0003,2]
[313082827,1706730646287,-155.0,0.0003,2]
[313082828,1706730646297,-533.36480853,0.0003,2]
[313082829,1706730646308,-51.04040339,0.0003,2]
[313082830,1706730646317,-160.91046422,0.00030016,2]
[313082831,1706730646327,-676.44875436,0.00030191,4]
[313082832,1706730646336,-250.0,0.00030596,2]
[313082833,1706730646345,-118.48279965,0.00030644,2]
[313082834,1706730646362,-51.74720035,0.00030644,2]
[313082835,1706730646374,-155.91,0.00030685,2]
[313082836,1706730646383,-10000.0,0.00030761,2]
[313082837,1706730646392,-1198.23,0.00030761,2]
[313082838,1706730646401,-200.0,0.00030761,2]
[313082839,1706730646413,-2000.0,0.00030761,2]
[313082840,1706730646422,-200.0,0.00030761,2]
[313082841,1706730646431,-1010.0,0.00030761,2]
[313082842,1706730646440,-150.0,0.00030822,2]
[313082843,1706730646450,-676.44875436,0.00031308,5]
[313082844,1706730646459,-734.51,0.00031472,2]
[313082846,1706730646468,-160.19,0.00031483,2]
[313082848,1706730646477,-155.91,0.00031507,2]
[313082850,1706730646487,-200.0,0.00031562,2]
[313082853,1706730646497,-17918.4995887,0.000318,3]
[313082855,1706730646506,-800.0,0.00031988,2]
[313082857,1706730646515,-161.77,0.00031988,2]
[313082859,1706730646524,-1198.23,0.00032405,2]
[313082860,1706730646533,-676.44875436,0.00032426,6]
[313082861,1706730646542,-11224.02535416,0.00032811,7]
[313082864,1706730646555,-13901.05655188,0.00032811,7]
[313082868,1706730872984,176.76,0.00021999,2]
[313082869,1706730904153,150.0,0.00022,2]
[313082871,1706731053145,161.22373424,0.00022438,2]
[313082872,1706731088449,853.69,0.00022431,2]
[313082873,1706731145192,150.0,0.00022335,2]
[313082875,1706731237472,722.29,0.00020242,2]
[313082876,1706731256185,170.23,0.00017728,2]
[313082877,1706731304602,25443.63,0.00022264,2]
[313082878,1706731373651,525.17910571,0.00022501,2]
[313082879,1706731378277,401.64065219,0.00022501,2]
[313082880,1706731381731,300.0,0.00022501,2]
[313082881,1706731385903,3134.76429599,0.00022501,2]
[313082882,1706731399766,187.35,0.00022432,2]
[313082883,1706731405828,263.3506829,0.00021752,2]
[313082884,1706731407891,2000.0,0.00022333,2]
[313082885,1706731425322,200.0,0.00022333,2]
[313082886,1706731439019,165.37,0.00022408,2]
[313082887,1706731456559,2313.11582133,0.00022501,2]
[313082888,1706731496080,176.76,0.00021999,2]
[313082890,1706731549282,275.86,0.00022314,2]
[313082893,1706731570542,711.4,0.00022314,2]
[313082894,1706731596986,150.0,0.00022309,2]
[313082895,1706731604382,250.0,0.00022309,2]
[313082896,1706731768490,2976.2579,0.00022459,2]
[313082897,1706731788976,686.17,0.00020596,2]
[313082932,1706731832236,-200.0,0.00022503,2]
[313082933,1706731832246,-176.76,0.00022547,2]
[313082934,1706731832256,-161.22373424,0.00022554,2]
[313082935,1706731832267,-227.19683614,0.0002256,2]
[313082936,1706731832278,-467.8057218,0.0002256,2]
[313082937,1706731832290,-547.9993307,0.0002256,2]
[313082938,1706731832302,-3213.0006693,0.0002256,2]
[313082939,1706731832393,-643.89374177,0.0002256,2]
[313082940,1706731832414,-3307.32373313,0.0002256,2]
[313082941,1706731832425,-415.03901403,0.0002256,2]
[313082942,1706731832466,-430.86,0.0002256,2]
[313082943,1706731832477,-13418.14757554,0.0002256,2]
[313082944,1706731832486,-23900.0,0.00022561,2]
[313082945,1706731832495,-1000.0,0.00022607,2]
[313082946,1706731832504,-167.44687142,0.00022668,2]
[313082947,1706731832515,-155.0,0.00022668,2]
[313082948,1706731832524,-161.22373424,0.00022669,2]
[313082949,1706731832533,-1486.19,0.00022769,2]
[313082951,1706731832543,-150.99,0.00022769,2]
[313082953,1706731832552,-1635.74,0.00022769,2]
[313082955,1706731832561,-6553.0,0.00022769,2]
[313082957,1706731832570,-2218.5,0.00022769,2]
[313082959,1706731832579,-161.22373424,0.00022785,2]
[313082961,1706731832588,-6287.9343,0.00022799,2]
[313082963,1706731832597,-686.17,0.0002286,2]
[313082965,1706731832607,-570.42096555,0.00022897,2]
[313082967,1706731832616,-520.7962337,0.00022897,2]
[313082969,1706731832625,-2293.17754055,0.00022897,2]
[313082971,1706731832635,-408.41431133,0.00022897,2]
[313082973,1706731832645,-494.0,0.00022898,2]
[313082975,1706731832654,-71748.7232,0.00022899,2]
[313082977,1706731832663,-1000.0,0.00022899,2]
[313082979,1706731832671,-2500.0,0.00022899,2]
[313082981,1706731832680,-616.39072607,0.00022899,2]
[313082983,1706731832689,-161.22373424,0.000229,2]
[313082985,1706731832698,-154.82358134,0.000229,2]
[313082987,1706731832708,-155.0,0.00022997,2]
[313082989,1706731832717,-500.0,0.00022998,2]
[313082991,1706731832726,-500.0,0.00022998,2]
[313082993,1706731832739,-500.0,0.00022998,2]
[313082996,1706731832756,-500.0,0.00022998,2]
[313082998,1706731832768,-500.0,0.00022998,2]
[313083000,1706731832778,-500.0,0.00022998,2]
[313083025,1706731832992,-500.0,0.00022998,2]
[313083027,1706731833002,-500.0,0.00022998,2]
[313083028,1706731833014,-500.0,0.00022998,2]
[313083031,1706731833024,-150.88728937,0.00022998,2]
[313083033,1706731833033,-500.0,0.00022998,2]
[313083035,1706731833043,-482.31632819,0.00022998,2]
[313083037,1706731833052,-500.0,0.00022998,2]
[313083038,1706731833062,-500.0,0.00022998,2]
[313083041,1706731833071,-500.0,0.00022998,2]
[313083043,1706731833080,-443.16965458,0.00022998,2]
[313083045,1706731833089,-500.0,0.00022998,2]
[313083047,1706731833099,-671862.75872474,0.00022999,2]
[313083068,1706731833395,-578.8885869,0.00022999,2]
[313083091,1706731839530,-337943.72263011,0.00022999,2]
[313083092,1706731839641,-43019.0,0.00022999,2]
[313083093,1706731839771,-725.36084865,0.00022999,2]
[313083095,1706731839783,-741.27723955,0.00022999,2]
[313083097,1706731839795,-420.8888349,0.00022999,2]
[313083115,1706731841579,-4454.85807872,0.00022999,2]
[313083116,1706731841589,-320.3280615,0.00022999,2]
[313083117,1706731841598,-150.0,0.00022999,2]
[313083118,1706731841608,-150.0,0.00022999,2]
[313083119,1706731841617,-150.0,0.00022999,2]
[313083120,1706731841625,-150.0,0.00022999,2]
[313083121,1706731841634,-150.0,0.00022999,2]
[313083122,1706731841643,-150.0,0.00022999,2]
[313083123,1706731841652,-223336.10153996,0.00023,2]
[313083124,1706731841663,-34877.67299342,0.00023,2]
[313083125,1706731841675,-3685.38050004,0.00023,2]
[313083126,1706731841706,-414.43719268,0.00023,2]
[313083141,1706731843959,-696.60540825,0.00022995,6]
[313083142,1706731843968,-7195.50037302,0.00023,2]
[313083143,1706731844144,-8555.99999999,0.00023,2]
[313083144,1706731844220,-269.38293007,0.00023,2]
[313083145,1706731844231,-5905.90669495,0.00023,2]
[313083168,1706731846343,-1766.37241017,0.00023,2]
[313083169,1706731846354,-6200.49168297,0.00023,2]
[313083170,1706731846365,-534.0,0.00023,2]
[313083171,1706731846424,-671.99999977,0.00023,2]
[313083338,1706731958588,158.44919549,0.00022409,2]
[313083339,1706731958942,2667.912243,0.00022394,2]
[313083340,1706731989061,155.0,0.00022501,2]
[313083341,1706731996937,11828.56,0.00022164,2]
[313083342,1706731998458,502.73699602,0.00022501,2]
[313083343,1706732001098,243.13018823,0.00022501,2]
[313083344,1706732012779,7804.60193513,0.00022501,2]
[313083345,1706732015552,525.44510824,0.00022501,2]
[313083346,1706732017864,2954.57416026,0.00022501,2]
[313083347,1706732019080,197.49477637,0.00022501,2]
[313083348,1706732022005,218.5573922,0.00022501,2]
[313083349,1706732030079,1044.13958215,0.00022501,2]
[313083350,1706732030530,4638.55770228,0.00022501,2]
[313083351,1706732030968,24410.55467101,0.00022501,2]
[313083352,1706732031013,699.81053348,0.00022501,2]
[313083353,1706732031443,7125.41459707,0.00022501,5]
[313083354,1706732031767,2788.02134693,0.00022501,2]
[313083355,1706732032405,3037.94768246,0.00022501,2]
[313083356,1706732033036,289.74601572,0.00022501,2]
[313083357,1706732033732,365.07230987,0.00022501,2]
[313083358,1706732034164,1063.73586621,0.00022501,2]
[313083359,1706732034555,200.0,0.00021902,2]
[313083360,1706732035592,250.96084546,0.00022501,2]
[313083361,1706732038617,388.05003353,0.00022501,2]
[313083362,1706732043209,1259.57085833,0.00022501,2]
[313083363,1706732046262,203.22221247,0.00022501,2]
[313083364,1706732047694,1139.78306733,0.00022501,2]
[313083365,1706732101903,250.0,0.00022458,2]
[313083366,1706732107734,155.0,0.00022501,2]
[313083367,1706732108623,1063.73586621,0.00022501,2]
[313083368,1706732115215,5228.78655032,0.00022501,2]
[313083369,1706732119616,199.85023894,0.00021998,2]
[313083370,1706732122937,388.05003353,0.00022501,2]
[313083372,1706732281767,150.0,0.00022501,2]
[313083373,1706732307859,226.24,0.00022455,2]
[313083374,1706732327357,166.05,0.00022455,2]
[313083375,1706732345759,654.3,0.00020611,2]
[313083376,1706732357492,183.28,0.00022433,2]
[313083377,1706732359371,165.37,0.00022433,2]
[313083378,1706732391539,296.02,0.00021798,2]
[313083380,1706732556500,619.25,0.00021798,2]
[313083381,1706732557228,250.0,0.00021864,2]
[313083386,1706732784208,3198.37181468,0.00022501,2]
[313083387,1706732789212,379.53,0.00022423,2]
[313083388,1706732798207,3195.89591398,0.00021979,2]
[313083389,1706732799667,167.43,0.00022423,2]
[313083390,1706732818907,2000.0,0.00022423,2]
[313083391,1706732856503,673.76,0.00020768,2]
[313083392,1706732877020,200.52345751,0.00022311,2]
[313083393,1706732902531,183.28,0.00021865,2]
[313083394,1706732916893,158.68,0.000225,2]
[313083395,1706732923630,150.0,0.00022467,2]
[313083396,1706732925143,2318.0,0.00021865,2]
[313083397,1706732940131,1048.26100712,0.00022501,2]
[313083402,1706732994885,542.46,0.00021865,2]
[313083403,1706732998246,500.0,0.00022478,2]
[313083419,1706733031390,-155.0,0.00022502,2]
[313083420,1706733031400,-499.05661973,0.00022502,2]
[313083421,1706733031409,-242.72209964,0.00022502,2]
[313083422,1706733031421,-716.99480979,0.00022502,2]
[313083423,1706733031433,-2136.77629159,0.00022502,2]
[313083424,1706733031447,-4943.88810052,0.00022502,2]
[313083425,1706733031460,-381.22577139,0.00022502,2]
[313083426,1706733031469,-671.94530451,0.00022502,2]
[313083427,1706733031479,-6002.94082408,0.00022502,2]
[313083428,1706733031490,-606.71636698,0.00022502,2]
[313083429,1706733031509,-836.62527966,0.00022502,2]
[313083430,1706733031526,-621.74390776,0.00022502,2]
[313083431,1706733031537,-404.60980498,0.00022502,2]
[313083432,1706733031548,-3268.16376235,0.00022502,2]
[313083433,1706733031575,-378.25609224,0.00022502,2]
[313083434,1706733031623,-473.48937259,0.00022502,2]
[313083435,1706733031633,-570.09,0.00022502,2]
[313083455,1706733037424,-4319.82458936,0.00022502,2]
[313083456,1706733037434,-840.0,0.00022545,2]
[313083457,1706733037443,-7361.07669114,0.000226,2]
[313083458,1706733037455,-1327.33258552,0.000226,2]
[313083459,1706733037466,-183.11,0.00022608,2]
[313083460,1706733037475,-21240.81788644,0.00022665,2]
[313083461,1706733037488,-1214.28051182,0.00022665,2]
[313083462,1706733037497,-2828.69095531,0.00022666,2]
[313083463,1706733037507,-2193.0039,0.00022797,2]
[313083464,1706733037517,-697.19634041,0.00022895,2]
[313083465,1706733037527,-1043.67199829,0.00022895,2]
[313083466,1706733037536,-289.62150855,0.00022895,2]
[313083467,1706733037546,-250.47505651,0.00022895,2]
[313083468,1706733037555,-364.75082717,0.00022895,2]
[313083469,1706733037565,-1896.54266909,0.00022895,2]
[313083470,1706733037574,-3035.3217119,0.00022895,2]
[313083471,1706733037583,-1258.46384015,0.00022895,2]
[313083472,1706733037592,-202.96157896,0.00022895,2]
[313083473,1706733037601,-447.89292513,0.00022895,2]
[313083474,1706733037611,-646.61565398,0.00022895,2]
[313083475,1706733037620,-5220.19965142,0.00022895,2]
[313083476,1706733037630,-341.54331615,0.00022895,2]
[313083477,1706733037639,-818.13,0.00022895,2]
[313083478,1706733037648,-1021.96607554,0.00022895,2]
[313083479,1706733037657,-197.22503279,0.00022896,2]
[313083480,1706733037667,-218.18270859,0.00022896,2]
[313083481,1706733037676,-1479.51754848,0.00022896,2]
[313083482,1706733037685,-2117.72023772,0.00022896,2]
[313083483,1706733037694,-676.53921369,0.00022896,5]
[313083484,1706733037704,-33525.46191339,0.00022897,2]
[313083485,1706733037714,-5704.49957513,0.00022897,2]
[313083486,1706733037723,-2237.176,0.00022898,2]
[313083487,1706733037732,-1000.0,0.00022899,2]
[313083488,1706733037742,-185.59775336,0.000229,2]
[313083489,1706733037751,-3502.87090781,0.000229,2]
[313083490,1706733037761,-154.82358127,0.000229,2]
[313083491,1706733037771,-199.64790617,0.000229,2]
[313083492,1706733037780,-368.65888733,0.000229,2]
[313083493,1706733037789,-507.6524163,0.000229,2]
[313083494,1706733037798,-1051.37036506,0.00022997,2]
[313083495,1706733037808,-2907.00228459,0.00022997,2]
[313083496,1706733037818,-155.0,0.00022997,2]
[313083497,1706733037827,-161.81736275,0.00022997,2]
[313083498,1706733037836,-155.0,0.00022997,2]
[313083499,1706733037845,-4033.34357982,0.00022997,2]
[313083500,1706733037855,-197.11131551,0.00022997,2]
[313083501,1706733037865,-5453.28620354,0.00022997,2]
[313083502,1706733037874,-572.32080993,0.00022997,2]
[313083503,1706733037883,-220.2573698,0.00022997,2]
[313083504,1706733037892,-27509.21337632,0.00022998,2]
[313083505,1706733037904,-3664.52,0.00022998,2]
[313083506,1706733037935,-398.96989766,0.00022998,2]
[313083507,1706733037951,-1372.04996266,0.00022998,2]
[313083508,1706733037965,-424.099996,0.00022998,2]
[313083724,1706733039945,-2163.86672022,0.00022998,2]
[313083727,1706733039957,-547.52749393,0.00022998,2]
[313083739,1706733040061,-21152.83674854,0.00022998,2]
[313083815,1706733040760,-557.2843266,0.00022932,6]
[313083817,1706733040771,-265.8551209,0.00022998,2]
[313083829,1706733040872,-574.03358918,0.00022998,2]
[313083832,1706733040884,-1538.33491211,0.00022998,2]
[313083834,1706733040896,-859.644,0.00022998,2]
[313083839,1706733040937,-7152.1006397,0.00022998,2]
[313083986,1706733042577,-4150.0,0.00022998,2]
[313083987,1706733042634,-314.9813052,0.00022998,2]
[313083988,1706733044654,1319.22455971,0.00022275,2]
[313083992,1706733045748,-1319.22455971,0.00022539,2]
[313083993,1706733045758,-152.51107,0.00022768,2]
[313083994,1706733045767,-681.46437029,0.00022998,2]
[313083995,1706733045779,-2299.29999998,0.00022998,2]
[313084001,1706733062933,328.0,0.00021865,2]
[313084002,1706733138694,250.0,0.0002218,2]
[313084003,1706733216585,154.59,0.00021865,10]
[313084004,1706733231243,2000.0,0.00021947,2]
[313084005,1706733236927,157.32998881,0.00022425,2]
[313084006,1706733241922,157.32998881,0.00022493,2]
[313084007,1706733286247,1319.22455971,0.00022465,2]
[313084008,1706733290494,189.76,0.00021837,2]
[313084009,1706733298291,752.0,0.00019922,2]
[313084010,1706733298522,752.0,0.00022186,2]
[313084011,1706733302887,943.04853509,0.00019921,2]
[313084012,1706733303180,2145.00433341,0.00019921,2]
[313084013,1706733304557,191.41298957,0.00019921,2]
[313084014,1706733308838,614.1,0.00022039,2]
[313084016,1706733337747,257.67,0.00022,2]
[313084017,1706733339462,257.67,0.00022137,2]
[313084018,1706733340707,512.8,0.00022274,2]
[313084019,1706733364212,183.28,0.00021851,2]
[313084020,1706733371681,176.76,0.00022,2]
[313084021,1706733381096,258.5,0.00021769,2]
[313084022,1706733386891,698.79883196,0.00022501,2]
[313084023,1706733393438,623.61336508,0.00022501,2]
[313084024,1706733394284,526.53963541,0.00022501,2]
[313084025,1706733395278,197.49477637,0.00022501,2]
[313084026,1706733398415,760.9452135,0.00022501,2]
[313084027,1706733404880,698.79883196,0.00022501,2]
[313084028,1706733405201,6456.21854522,0.00022501,2]
[313084029,1706733405783,338.56847169,0.00022501,2]
[313084030,1706733407436,623.61336508,0.00021664,2]
[313084031,1706733408500,419.24069403,0.00022501,2]
[313084032,1706733410754,7804.60193513,0.00022501,2]
[313084033,1706733412862,315.11803228,0.00022501,2]
[313084034,1706733414372,4648.55054308,0.00022501,2]
[313084035,1706733415336,165.30239559,0.00022501,2]
[313084036,1706733416439,347.74753228,0.00022501,2]
[313084037,1706733418681,496.06514988,0.00022501,2]
[313084038,1706733419059,264.1261331,0.00022501,2]
[313084039,1706733424497,421.01527906,0.00022501,2]
[313084040,1706733424757,7797.78390663,0.00022501,2]
[313084041,1706733425212,1981.5200928,0.00022501,2]
[313084042,1706733426383,4644.22662914,0.00022501,2]
[313084043,1706733426888,566.00139004,0.00022501,2]
[313084044,1706733427431,360.77002661,0.00021601,2]
[313084045,1706733427799,217.0405895,0.00022501,2]
[313084046,1706733429575,5228.78655032,0.00022501,2]
[313084047,1706733430602,3152.92101953,0.00022501,2]
[313084048,1706733430981,315.11803228,0.00022501,2]
[313084049,1706733432831,492.89376015,0.00022276,2]
[313084050,1706733432908,203.61715442,0.00022501,2]
[313084051,1706733433223,199.7786695,0.00022501,2]
[313084052,1706733434207,2145.00433341,0.00022501,2]
[313084053,1706733435898,155.0,0.00022501,2]
[313084054,1706733436955,5458.30454186,0.00022501,2]
[313084055,1706733439057,263.78522896,0.00022501,2]
[313084056,1706733443720,23900.0,0.00021865,2]
[313084057,1706733444406,164.99501177,0.00022501,2]
[313084058,1706733444599,3151.54630641,0.00022501,2]
[313084059,1706733445241,199.7786695,0.00022501,2]
[313084060,1706733446902,203.61715442,0.00022501,2]
[313084061,1706733447394,5224.5438702,0.00022501,2]
[313084062,1706733448858,314.32631313,0.00022501,2]
[313084063,1706733449903,155.0,0.00022501,2]
[313084064,1706733452195,2134.91984507,0.00022501,2]
[313084065,1706733454069,748.63,0.00021883,2]
[313084066,1706733456943,705.00874816,0.00022501,2]
[313084067,1706733478008,3209.72,0.00021754,2]
[313084068,1706733500537,200.0,0.00021811,2]
[313084069,1706733511616,310.97245185,0.00022501,2]
[313084070,1706733511647,704.80838878,0.00021582,2]
[313084071,1706733511670,32.79161122,0.00021582,2]
[313084072,1706733564143,151.78084063,0.00021939,2]
[313084073,1706733564168,5.90915937,0.00021939,2]
[313084074,1706733564390,157.69,0.00022053,2]
[313084075,1706733564771,157.69,0.00022167,2]
[313084076,1706733564999,157.69,0.00022282,2]
[313084077,1706733565248,157.69,0.00022396,2]
[313084078,1706733570191,1390.07,0.00021582,2]
[313084079,1706733579824,809.77,0.00021746,2]
[313084080,1706733580906,250.0,0.00021746,2]
[313084082,1706733660267,150.0,0.00021739,2]
[313084083,1706733754625,24833.1855,0.00022469,2]
[313084084,1706733782241,933.6074,0.00022469,2]
[313084085,1706733864683,676.8,0.00019875,2]
[313084086,1706733864908,676.8,0.00022139,2]
[313084087,1706733879171,421.03960501,0.00022501,2]
[313084088,1706733882237,1000.0,0.00022469,2]
[313084089,1706733897161,544.45125247,0.00021663,2]
[313084090,1706733921817,507.58,0.00021792,2]
[313084091,1706733927362,189.76,0.00021789,2]
[313084093,1706733943941,205.69,0.00021618,2]
[313084094,1706733951768,200.0,0.00021788,2]
[313084097,1706733990821,176.76,0.00022,2]
[313084098,1706734011252,157.69,0.00021956,2]
[313084099,1706734011515,157.69,0.00022185,2]
[313084100,1706734011748,157.69,0.00022414,2]
[313084101,1706734012085,1158.39,0.00021793,2]